[Event "Late-Titled-Tuesday-Blitz-July-09-2024"]
[Site "Chess.com"]
[Date "2024.07.09"]
[Round "1"]
[White "Andreikka"]
[Black "WPWPWP-2015"]
[Result "1-0"]
[WhiteElo "3009"]
[BlackElo "2507"]
[TimeControl "180+1"]
[EndTime "14:08:07 PDT"]
[Termination "Andreikka won by resignation"]

1. d4 {[%clk 0:02:55.2]} 1... d5 {[%clk 0:02:58.2]} 2. Nc3 {[%clk 0:02:50.3]}
2... Nf6 {[%clk 0:02:56.7]} 3. Bf4 {[%clk 0:02:50.2]} 3... c6 {[%clk 0:02:56.2]}
4. e3 {[%clk 0:02:50.1]} 4... Bf5 {[%clk 0:02:55.4]} 5. Nf3 {[%clk 0:02:46.7]}
5... Nbd7 {[%clk 0:02:53.5]} 6. Be2 {[%clk 0:02:43.6]} 6... h6 {[%clk
0:02:52.4]} 7. O-O {[%clk 0:02:39.7]} 7... e6 {[%clk 0:02:52.3]} 8. h3 {[%clk
0:02:39.4]} 8... Bb4 {[%clk 0:02:51]} 9. Bd3 {[%clk 0:02:37.9]} 9... O-O {[%clk
0:02:45.4]} 10. Bxf5 {[%clk 0:02:36.4]} 10... exf5 {[%clk 0:02:45]} 11. Ne2
{[%clk 0:02:36.7]} 11... Ne4 {[%clk 0:02:36.3]} 12. Nc1 {[%clk 0:02:35.5]} 12...
Re8 {[%clk 0:02:28.9]} 13. Nd3 {[%clk 0:02:35]} 13... Bf8 {[%clk 0:02:28.4]} 14.
b3 {[%clk 0:02:33.3]} 14... a5 {[%clk 0:02:27.6]} 15. c4 {[%clk 0:02:31.8]}
15... Ndf6 {[%clk 0:02:25.6]} 16. Qc2 {[%clk 0:02:31.1]} 16... a4 {[%clk
0:02:21.9]} 17. bxa4 {[%clk 0:02:22.2]} 17... dxc4 {[%clk 0:02:15.1]} 18. Qxc4
{[%clk 0:02:20.2]} 18... Nd5 {[%clk 0:02:07.7]} 19. Rfb1 {[%clk 0:02:15.6]}
19... Re7 {[%clk 0:02:03.4]} 20. Be5 {[%clk 0:01:13.5]} 20... Nec3 {[%clk
0:01:51.3]} 21. Rb2 {[%clk 0:00:58.5]} 21... Rxa4 {[%clk 0:01:49.3]} 22. Qb3
{[%clk 0:00:58.4]} 22... Ra7 {[%clk 0:01:42.9]} 23. Rc1 {[%clk 0:00:47.7]} 23...
Ne4 {[%clk 0:01:37.5]} 24. a4 {[%clk 0:00:44.7]} 24... Qa5 {[%clk 0:01:28.9]}
25. Rc4 {[%clk 0:00:45.2]} 25... Rd7 {[%clk 0:01:08.1]} 26. Bb8 {[%clk
0:00:30.5]} 26... Ra8 {[%clk 0:01:07.1]} 27. Bh2 {[%clk 0:00:27.9]} 27... f6
{[%clk 0:00:40.4]} 28. Nf4 {[%clk 0:00:23.1]} 28... Kh7 {[%clk 0:00:35.3]} 29.
Ne6 {[%clk 0:00:19.1]} 29... Be7 {[%clk 0:00:33.6]} 30. h4 {[%clk 0:00:17.4]}
30... Re8 {[%clk 0:00:26.8]} 31. h5 {[%clk 0:00:17.1]} 31... Qa7 {[%clk
0:00:10.1]} 32. Nf4 {[%clk 0:00:16.6]} 32... Qa5 {[%clk 0:00:08.3]} 33. Ng6
{[%clk 0:00:16.3]} 33... Bd6 {[%clk 0:00:07.5]} 34. Bxd6 {[%clk 0:00:16.1]}
34... Nxd6 {[%clk 0:00:07.6]} 35. Rc5 {[%clk 0:00:16.6]} 35... Qa6 {[%clk
0:00:07.3]} 36. Ngh4 {[%clk 0:00:13.5]} 36... Ne4 {[%clk 0:00:07.2]} 37. Rc1
{[%clk 0:00:13.2]} 37... Nd6 {[%clk 0:00:07.3]} 38. Qc2 {[%clk 0:00:13.2]} 38...
Re4 {[%clk 0:00:07.4]} 39. Nxf5 {[%clk 0:00:13.2]} 39... Nc3 {[%clk 0:00:02.4]}
40. Nxd6 {[%clk 0:00:12]} 40... Rxd6 {[%clk 0:00:02.4]} 41. Qxc3 {[%clk
0:00:12.5]} 41... f5 {[%clk 0:00:02.9]} 42. Qc5 {[%clk 0:00:12.2]} 42... Rf6
{[%clk 0:00:02.3]} 43. Qc4 {[%clk 0:00:10.2]} 43... Qa5 {[%clk 0:00:02.2]} 44.
Rxb7 {[%clk 0:00:09.3]} 44... Qd8 {[%clk 0:00:02]} 45. Ne5 {[%clk 0:00:08.6]}
45... f4 {[%clk 0:00:02.1]} 46. Qc2 {[%clk 0:00:08.7]} 46... Qd5 {[%clk
0:00:01.7]} 47. Rd7 {[%clk 0:00:07.7]} 47... Qe6 {[%clk 0:00:01.2]} 48. Qxe4+
{[%clk 0:00:07.5]} 48... Rf5 {[%clk 0:00:02.1]} 49. Re7 {[%clk 0:00:07.3]} 49...
Qf6 {[%clk 0:00:01.6]} 50. Rf7 {[%clk 0:00:07.6]} 50... Qg5 {[%clk 0:00:02.1]}
51. Qxf5+ {[%clk 0:00:07.7]} 51... Qxf5 {[%clk 0:00:02.4]} 52. Rxf5 {[%clk
0:00:08.6]} 1-0

[Event "Late-Titled-Tuesday-Blitz-July-09-2024"]
[Site "Chess.com"]
[Date "2024.07.09"]
[Round "1"]
[White "andrejljepic"]
[Black "sofaceindisguise"]
[Result "1-0"]
[WhiteElo "2453"]
[BlackElo "2794"]
[TimeControl "180+1"]
[EndTime "14:08:07 PDT"]
[Termination "andrejljepic won by resignation"]

1. e4 {[%clk 0:03:00.9]} 1... c5 {[%clk 0:02:41.2]} 2. Nf3 {[%clk 0:02:58.9]}
2... e6 {[%clk 0:02:41.5]} 3. c3 {[%clk 0:02:59.1]} 3... d5 {[%clk 0:02:40.7]}
4. exd5 {[%clk 0:03:00]} 4... Qxd5 {[%clk 0:02:41]} 5. d4 {[%clk 0:03:00.2]}
5... Nf6 {[%clk 0:02:39.8]} 6. Be3 {[%clk 0:02:56.8]} 6... cxd4 {[%clk 0:02:35]}
7. Qxd4 {[%clk 0:02:55.4]} 7... Qxd4 {[%clk 0:02:34.6]} 8. Nxd4 {[%clk
0:02:54.7]} 8... a6 {[%clk 0:02:33.6]} 9. Nd2 {[%clk 0:02:49.8]} 9... Nd5 {[%clk
0:02:32.8]} 10. Nc4 {[%clk 0:02:43.9]} 10... Nxe3 {[%clk 0:02:32.7]} 11. fxe3
{[%clk 0:02:38.8]} 11... Nd7 {[%clk 0:02:32.2]} 12. a4 {[%clk 0:02:37.1]} 12...
b6 {[%clk 0:02:29]} 13. Be2 {[%clk 0:02:34.5]} 13... Bb7 {[%clk 0:02:29]} 14.
Bf3 {[%clk 0:02:34.5]} 14... Bxf3 {[%clk 0:02:25.2]} 15. gxf3 {[%clk 0:02:32.9]}
15... Bc5 {[%clk 0:02:23.1]} 16. Ke2 {[%clk 0:02:31]} 16... Bxd4 {[%clk
0:02:21.3]} 17. cxd4 {[%clk 0:02:18.9]} 17... Ke7 {[%clk 0:02:21.1]} 18. Rhc1
{[%clk 0:02:12]} 18... Rhc8 {[%clk 0:02:20.6]} 19. Nd2 {[%clk 0:02:08.9]} 19...
e5 {[%clk 0:02:13.7]} 20. Kd3 {[%clk 0:02:01]} 20... exd4 {[%clk 0:02:13.5]} 21.
exd4 {[%clk 0:02:01.9]} 21... Nf6 {[%clk 0:02:12.6]} 22. Nc4 {[%clk 0:02:01.8]}
22... Nd5 {[%clk 0:02:12.2]} 23. Ne5 {[%clk 0:01:58]} 23... f6 {[%clk
0:02:08.9]} 24. Ke4 {[%clk 0:01:44.5]} 24... Ke6 {[%clk 0:02:03.8]} 25. Nc4
{[%clk 0:01:29.3]} 25... Rc6 {[%clk 0:01:56]} 26. Ne3 {[%clk 0:01:21.4]} 26...
Rxc1 {[%clk 0:01:53.9]} 27. Rxc1 {[%clk 0:01:22.1]} 27... Nxe3 {[%clk
0:01:53.8]} 28. Kxe3 {[%clk 0:01:21.7]} 28... Kd6 {[%clk 0:01:53]} 29. h4 {[%clk
0:01:07.2]} 29... g6 {[%clk 0:01:50]} 30. h5 {[%clk 0:01:05.5]} 30... g5 {[%clk
0:01:43.4]} 31. Ke4 {[%clk 0:01:04.5]} 31... Rf8 {[%clk 0:01:13]} 32. Kf5 {[%clk
0:01:00.7]} 32... a5 {[%clk 0:01:02.5]} 33. Re1 {[%clk 0:00:58.1]} 33... Kd5
{[%clk 0:01:01.8]} 34. Re6 {[%clk 0:00:52.6]} 34... Kxd4 {[%clk 0:01:01.3]} 35.
Rxb6 {[%clk 0:00:52.6]} 35... Ke3 {[%clk 0:00:58.5]} 36. Rb3+ {[%clk 0:00:39.6]}
36... Kf2 {[%clk 0:00:58.5]} 37. h6 {[%clk 0:00:40.1]} 37... Rf7 {[%clk
0:00:55.4]} 38. Ke6 {[%clk 0:00:39.2]} 38... Rf8 {[%clk 0:00:51.9]} 39. Ke7
{[%clk 0:00:38.9]} 39... Rg8 {[%clk 0:00:52.2]} 40. Kxf6 {[%clk 0:00:35.2]}
40... Rg6+ {[%clk 0:00:52.2]} 41. Kf5 {[%clk 0:00:35.8]} 41... Rxh6 {[%clk
0:00:51.8]} 42. Kxg5 {[%clk 0:00:36.3]} 42... Rg6+ {[%clk 0:00:45.9]} 43. Kf5
{[%clk 0:00:31.7]} 43... Rg7 {[%clk 0:00:40.5]} 44. f4 {[%clk 0:00:32.1]} 44...
h5 {[%clk 0:00:40.2]} 45. Rh3 {[%clk 0:00:31.2]} 45... Rh7 {[%clk 0:00:30]} 46.
Kg6 {[%clk 0:00:31]} 46... Rb7 {[%clk 0:00:27.2]} 47. f5 {[%clk 0:00:28.4]}
47... Rxb2 {[%clk 0:00:24.3]} 48. f6 {[%clk 0:00:28.8]} 48... Rb6 {[%clk
0:00:22.9]} 49. Kg7 {[%clk 0:00:26.9]} 49... Rb4 {[%clk 0:00:18.7]} 50. f7
{[%clk 0:00:25.2]} 50... Rg4+ {[%clk 0:00:19]} 51. Kf8 {[%clk 0:00:20.3]} 51...
Rg5 {[%clk 0:00:18.3]} 52. Ke7 {[%clk 0:00:19.3]} 52... Re5+ {[%clk 0:00:18.5]}
53. Kf6 {[%clk 0:00:19.8]} 53... Re3 {[%clk 0:00:17.9]} 54. f8=Q {[%clk
0:00:20.3]} 54... Rxh3 {[%clk 0:00:17.9]} 55. Qc5+ {[%clk 0:00:19.6]} 55... Kg2
{[%clk 0:00:17.9]} 56. Qxa5 {[%clk 0:00:19.6]} 56... h4 {[%clk 0:00:18.2]} 57.
Qd5+ {[%clk 0:00:19.7]} 57... Rf3+ {[%clk 0:00:18.3]} 58. Kg5 {[%clk 0:00:20.4]}
58... Kg3 {[%clk 0:00:14.7]} 59. Qe5+ {[%clk 0:00:20.2]} 59... Kf2 {[%clk
0:00:14.8]} 60. Kxh4 {[%clk 0:00:19.8]} 60... Re3 {[%clk 0:00:14.9]} 61. Qd4
{[%clk 0:00:19.7]} 61... Ke2 {[%clk 0:00:15]} 62. a5 {[%clk 0:00:20.2]} 62...
Rd3 {[%clk 0:00:15.1]} 63. Qxd3+ {[%clk 0:00:20.6]} 63... Kxd3 {[%clk 0:00:16]}
64. a6 {[%clk 0:00:21.5]} 64... Kc4 {[%clk 0:00:16.8]} 65. a7 {[%clk 0:00:22.4]}
65... Kb5 {[%clk 0:00:17.7]} 66. a8=Q {[%clk 0:00:23.1]} 66... Kb6 {[%clk
0:00:18.3]} 67. Qc8 {[%clk 0:00:23.2]} 67... Kb5 {[%clk 0:00:19.2]} 68. Kg4
{[%clk 0:00:23.7]} 1-0

[Event "Late-Titled-Tuesday-Blitz-July-09-2024"]
[Site "Chess.com"]
[Date "2024.07.09"]
[Round "1"]
[White "Javokhir_Sindarov05"]
[Black "GilbertoHernandezAmura"]
[Result "1-0"]
[WhiteElo "3069"]
[BlackElo "2512"]
[TimeControl "180+1"]
[EndTime "14:08:09 PDT"]
[Termination "Javokhir_Sindarov05 won by checkmate"]

1. e4 {[%clk 0:02:51.1]} 1... e5 {[%clk 0:02:59]} 2. Nf3 {[%clk 0:02:51.1]} 2...
Nc6 {[%clk 0:02:48.6]} 3. Bc4 {[%clk 0:02:36.3]} 3... Bc5 {[%clk 0:02:48.5]} 4.
Nc3 {[%clk 0:02:35.1]} 4... a6 {[%clk 0:02:26.8]} 5. d3 {[%clk 0:02:32.5]} 5...
h6 {[%clk 0:02:17.5]} 6. Be3 {[%clk 0:02:30.1]} 6... Bxe3 {[%clk 0:02:10.4]} 7.
fxe3 {[%clk 0:02:31]} 7... Nf6 {[%clk 0:02:05.1]} 8. O-O {[%clk 0:02:31]} 8...
d6 {[%clk 0:02:05.4]} 9. d4 {[%clk 0:02:30.8]} 9... Bg4 {[%clk 0:01:56.1]} 10.
a3 {[%clk 0:02:27.6]} 10... Qd7 {[%clk 0:01:50.3]} 11. Qd3 {[%clk 0:02:24.2]}
11... O-O {[%clk 0:01:06.6]} 12. Nh4 {[%clk 0:02:16.5]} 12... Ne7 {[%clk
0:01:02.2]} 13. Rf2 {[%clk 0:02:01.3]} 13... exd4 {[%clk 0:00:54.2]} 14. exd4
{[%clk 0:02:01.4]} 14... d5 {[%clk 0:00:52.2]} 15. exd5 {[%clk 0:01:59.6]} 15...
Nexd5 {[%clk 0:00:47.2]} 16. Nxd5 {[%clk 0:01:50.3]} 16... Nxd5 {[%clk
0:00:46.7]} 17. Qg3 {[%clk 0:01:50.9]} 17... Be6 {[%clk 0:00:43.1]} 18. Raf1
{[%clk 0:01:47.7]} 18... c6 {[%clk 0:00:40.3]} 19. Bd3 {[%clk 0:01:47.3]} 19...
Rad8 {[%clk 0:00:38.4]} 20. c3 {[%clk 0:01:46.5]} 20... Qe7 {[%clk 0:00:34.4]}
21. h3 {[%clk 0:01:43.5]} 21... Qg5 {[%clk 0:00:33.4]} 22. Kh2 {[%clk
0:01:39.8]} 22... Qxg3+ {[%clk 0:00:32.9]} 23. Kxg3 {[%clk 0:01:40.7]} 23... Nb6
{[%clk 0:00:30.7]} 24. Bf5 {[%clk 0:01:37.2]} 24... Bxf5 {[%clk 0:00:29.6]} 25.
Nxf5 {[%clk 0:01:38.1]} 25... Rfe8 {[%clk 0:00:28.6]} 26. Rf4 {[%clk 0:01:38.5]}
26... h5 {[%clk 0:00:25.4]} 27. R4f3 {[%clk 0:01:31.2]} 27... Rd7 {[%clk
0:00:25.6]} 28. Re3 {[%clk 0:01:26.3]} 28... Rxe3+ {[%clk 0:00:23.2]} 29. Nxe3
{[%clk 0:01:27.2]} 29... Re7 {[%clk 0:00:23.8]} 30. Kf2 {[%clk 0:01:24.2]} 30...
g6 {[%clk 0:00:23]} 31. Re1 {[%clk 0:01:21.9]} 31... Kf8 {[%clk 0:00:21.9]} 32.
Rd1 {[%clk 0:01:20.2]} 32... f6 {[%clk 0:00:20.4]} 33. c4 {[%clk 0:01:20]} 33...
Rd7 {[%clk 0:00:20.4]} 34. Ke2 {[%clk 0:01:16.5]} 34... Ke7 {[%clk 0:00:20.4]}
35. Kd3 {[%clk 0:01:13.9]} 35... g5 {[%clk 0:00:20.5]} 36. Re1 {[%clk
0:01:13.1]} 36... Kf7 {[%clk 0:00:20.9]} 37. Nf5 {[%clk 0:01:12.7]} 37... Kg6
{[%clk 0:00:20.5]} 38. g4 {[%clk 0:01:13.4]} 38... hxg4 {[%clk 0:00:20.6]} 39.
hxg4 {[%clk 0:01:14.3]} 39... Rh7 {[%clk 0:00:20.7]} 40. b3 {[%clk 0:01:09.5]}
40... Nd7 {[%clk 0:00:21.1]} 41. Re8 {[%clk 0:01:03.5]} 41... c5 {[%clk
0:00:21.5]} 42. Rg8+ {[%clk 0:00:50.5]} 42... Kf7 {[%clk 0:00:21.4]} 43. Rd8
{[%clk 0:00:51.1]} 43... Kg6 {[%clk 0:00:20.3]} 44. Nd6 {[%clk 0:00:35.3]} 44...
cxd4 {[%clk 0:00:19.7]} 45. Kxd4 {[%clk 0:00:28]} 45... Ne5 {[%clk 0:00:19]} 46.
Rg8+ {[%clk 0:00:28.2]} 46... Rg7 {[%clk 0:00:18.4]} 47. Rxg7+ {[%clk
0:00:28.3]} 47... Kxg7 {[%clk 0:00:19.3]} 48. Nxb7 {[%clk 0:00:13.4]} 48... Nxg4
{[%clk 0:00:19.7]} 49. b4 {[%clk 0:00:13.9]} 49... Ne5 {[%clk 0:00:19.8]} 50. a4
{[%clk 0:00:12.8]} 50... g4 {[%clk 0:00:20.3]} 51. Nd6 {[%clk 0:00:10.1]} 51...
Kf8 {[%clk 0:00:20.2]} 52. Nf5 {[%clk 0:00:09.7]} 52... Ke8 {[%clk 0:00:20.7]}
53. b5 {[%clk 0:00:09.2]} 53... axb5 {[%clk 0:00:20.7]} 54. cxb5 {[%clk
0:00:10.1]} 54... Kd7 {[%clk 0:00:21.4]} 55. a5 {[%clk 0:00:10.4]} 55... Kc7
{[%clk 0:00:22]} 56. Kd5 {[%clk 0:00:10.1]} 56... g3 {[%clk 0:00:21.8]} 57. Nxg3
{[%clk 0:00:10.2]} 57... Nd3 {[%clk 0:00:22.1]} 58. Nf5 {[%clk 0:00:07.2]} 58...
Nb4+ {[%clk 0:00:22.7]} 59. Kc4 {[%clk 0:00:07.8]} 59... Nc2 {[%clk 0:00:22.5]}
60. Nd4 {[%clk 0:00:07.8]} 60... Ne3+ {[%clk 0:00:22.5]} 61. Kc5 {[%clk
0:00:08.3]} 61... f5 {[%clk 0:00:22.5]} 62. b6+ {[%clk 0:00:08.1]} 62... Kb7
{[%clk 0:00:23.1]} 63. Kb5 {[%clk 0:00:08.8]} 63... Nd5 {[%clk 0:00:23.3]} 64.
a6+ {[%clk 0:00:09.1]} 64... Kb8 {[%clk 0:00:23.6]} 65. Nc6+ {[%clk 0:00:09.1]}
65... Ka8 {[%clk 0:00:23.6]} 66. b7# {[%clk 0:00:09.7]} 1-0

[Event "Late-Titled-Tuesday-Blitz-July-09-2024"]
[Site "Chess.com"]
[Date "2024.07.09"]
[Round "1"]
[White "Snowball-03"]
[Black "Ash15K"]
[Result "0-1"]
[WhiteElo "2610"]
[BlackElo "2306"]
[TimeControl "180+1"]
[EndTime "14:08:10 PDT"]
[Termination "Ash15K won by resignation"]

1. e4 {[%clk 0:02:51.7]} 1... c5 {[%clk 0:02:59.5]} 2. Nf3 {[%clk 0:02:51.2]}
2... d6 {[%clk 0:02:59.4]} 3. d4 {[%clk 0:02:51.7]} 3... cxd4 {[%clk 0:03:00.3]}
4. Nxd4 {[%clk 0:02:52.3]} 4... Nf6 {[%clk 0:03:00.6]} 5. Nc3 {[%clk 0:02:52.9]}
5... a6 {[%clk 0:03:00.6]} 6. Bg5 {[%clk 0:02:53]} 6... Nbd7 {[%clk 0:02:59.5]}
7. Qe2 {[%clk 0:02:52.1]} 7... g6 {[%clk 0:02:56.8]} 8. O-O-O {[%clk 0:02:50.7]}
8... Bg7 {[%clk 0:02:57.1]} 9. f4 {[%clk 0:02:50]} 9... O-O {[%clk 0:02:57]} 10.
e5 {[%clk 0:02:45.5]} 10... dxe5 {[%clk 0:02:55.4]} 11. fxe5 {[%clk 0:02:46.4]}
11... Qa5 {[%clk 0:02:55.3]} 12. Bxf6 {[%clk 0:02:33.2]} 12... exf6 {[%clk
0:02:45.1]} 13. e6 {[%clk 0:02:32.6]} 13... Ne5 {[%clk 0:02:41]} 14. Nb3 {[%clk
0:02:16.8]} 14... Bh6+ {[%clk 0:01:40.5]} 15. Kb1 {[%clk 0:02:11.5]} 15... Qb6
{[%clk 0:01:11.4]} 16. Nd5 {[%clk 0:01:37.7]} 16... Qxe6 {[%clk 0:01:01.1]} 17.
Nc7 {[%clk 0:01:20.7]} 17... Qc6 {[%clk 0:00:56.2]} 18. Nxa8 {[%clk 0:01:20.6]}
18... Bg4 {[%clk 0:00:56]} 19. Qe1 {[%clk 0:00:57]} 19... Bxd1 {[%clk
0:00:53.9]} 20. Qxd1 {[%clk 0:00:57.9]} 20... Rxa8 {[%clk 0:00:53.8]} 21. Nd4
{[%clk 0:00:57.5]} 21... Qd5 {[%clk 0:00:50.3]} 22. Be2 {[%clk 0:00:53]} 22...
Rd8 {[%clk 0:00:45.4]} 23. c3 {[%clk 0:00:52.7]} 23... Qe4+ {[%clk 0:00:44.8]}
24. Ka1 {[%clk 0:00:49.5]} 24... Be3 {[%clk 0:00:44.4]} 25. Re1 {[%clk
0:00:29.7]} 25... Bxd4 {[%clk 0:00:40.7]} 26. cxd4 {[%clk 0:00:30.6]} 26... Qxd4
{[%clk 0:00:39.6]} 27. Qb3 {[%clk 0:00:27.1]} 27... Qd2 {[%clk 0:00:37.4]} 28.
Rd1 {[%clk 0:00:26]} 28... Qa5 {[%clk 0:00:32.8]} 29. Rxd8+ {[%clk 0:00:24.3]}
29... Qxd8 {[%clk 0:00:33.7]} 30. a3 {[%clk 0:00:20.1]} 30... Qd2 {[%clk
0:00:32.2]} 31. Bd1 {[%clk 0:00:11.1]} 31... Qxg2 {[%clk 0:00:27.4]} 32. h3
{[%clk 0:00:09.4]} 32... Qd2 {[%clk 0:00:21.2]} 33. Ka2 {[%clk 0:00:08.8]} 33...
Nd3 {[%clk 0:00:19.9]} 34. Ka1 {[%clk 0:00:07.1]} 34... Nxb2 {[%clk 0:00:10.1]}
35. Bc2 {[%clk 0:00:06]} 35... Qc1+ {[%clk 0:00:07.6]} 36. Ka2 {[%clk
0:00:05.3]} 36... Qh1 {[%clk 0:00:03.3]} 37. Qxb2 {[%clk 0:00:05.1]} 37... Qxh3
{[%clk 0:00:03.3]} 38. Qxf6 {[%clk 0:00:05]} 38... Qe6+ {[%clk 0:00:03.6]} 39.
Qxe6 {[%clk 0:00:05.3]} 39... fxe6 {[%clk 0:00:04.5]} 40. Be4 {[%clk 0:00:03.7]}
40... b6 {[%clk 0:00:03.7]} 41. Kb3 {[%clk 0:00:02.6]} 41... g5 {[%clk
0:00:04.2]} 42. Kc4 {[%clk 0:00:02.3]} 42... h5 {[%clk 0:00:04.1]} 43. Bb7
{[%clk 0:00:02.4]} 43... h4 {[%clk 0:00:02.4]} 44. Bxa6 {[%clk 0:00:02.2]} 44...
h3 {[%clk 0:00:01.9]} 45. Bb7 {[%clk 0:00:02.2]} 45... g4 {[%clk 0:00:01.6]} 46.
Kb5 {[%clk 0:00:02.4]} 46... g3 {[%clk 0:00:01.7]} 47. Kxb6 {[%clk 0:00:01.1]}
47... g2 {[%clk 0:00:02.6]} 48. a4 {[%clk 0:00:01.8]} 48... g1=Q+ {[%clk
0:00:02.7]} 49. Kc7 {[%clk 0:00:02.3]} 49... h2 {[%clk 0:00:03.6]} 50. a5 {[%clk
0:00:02.6]} 50... h1=Q {[%clk 0:00:04.5]} 51. Bxh1 {[%clk 0:00:02.5]} 51... Qxh1
{[%clk 0:00:05.4]} 52. a6 {[%clk 0:00:03.2]} 52... Qa8 {[%clk 0:00:06]} 53. Kb6
{[%clk 0:00:03.6]} 53... e5 {[%clk 0:00:05.4]} 0-1

[Event "Late-Titled-Tuesday-Blitz-July-09-2024"]
[Site "Chess.com"]
[Date "2024.07.09"]
[Round "1"]
[White "Adar_07"]
[Black "Payyappat"]
[Result "1-0"]
[WhiteElo "2751"]
[BlackElo "2412"]
[TimeControl "180+1"]
[EndTime "14:08:13 PDT"]
[Termination "Adar_07 won on time"]

1. Nf3 {[%clk 0:03:00.9]} 1... Nf6 {[%clk 0:02:57.1]} 2. d4 {[%clk 0:02:58.2]}
2... e6 {[%clk 0:02:52.2]} 3. Bg5 {[%clk 0:02:57.5]} 3... c5 {[%clk 0:02:50.6]}
4. Nc3 {[%clk 0:02:41.9]} 4... cxd4 {[%clk 0:02:48.3]} 5. Nxd4 {[%clk
0:02:42.4]} 5... Nc6 {[%clk 0:02:49]} 6. Ndb5 {[%clk 0:02:41.3]} 6... d5 {[%clk
0:02:48.3]} 7. e4 {[%clk 0:02:39.1]} 7... a6 {[%clk 0:02:41.4]} 8. exd5 {[%clk
0:02:27.9]} 8... axb5 {[%clk 0:02:40.6]} 9. dxc6 {[%clk 0:02:27.8]} 9... Qxd1+
{[%clk 0:02:40.6]} 10. Rxd1 {[%clk 0:02:27.1]} 10... bxc6 {[%clk 0:02:40.6]} 11.
a3 {[%clk 0:02:05.8]} 11... Be7 {[%clk 0:02:34]} 12. Be2 {[%clk 0:02:01.3]}
12... O-O {[%clk 0:01:52.6]} 13. Bf3 {[%clk 0:02:00.3]} 13... Ra6 {[%clk
0:01:26.1]} 14. O-O {[%clk 0:02:00]} 14... h6 {[%clk 0:01:19.6]} 15. Bh4 {[%clk
0:01:58.1]} 15... Re8 {[%clk 0:00:57.9]} 16. Rfe1 {[%clk 0:01:50.2]} 16... g5
{[%clk 0:00:22.5]} 17. Bg3 {[%clk 0:01:49.2]} 17... h5 {[%clk 0:00:21.5]} 18.
Be5 {[%clk 0:01:45.3]} 18... g4 {[%clk 0:00:21.3]} 19. Be2 {[%clk 0:01:42.7]}
19... Nd5 {[%clk 0:00:19.8]} 20. Nxb5 {[%clk 0:01:42.6]} 20... cxb5 {[%clk
0:00:19]} 21. Bxb5 {[%clk 0:01:43.5]} 21... Rf8 {[%clk 0:00:18.7]} 22. Bxa6
{[%clk 0:01:25.6]} 22... Bxa6 {[%clk 0:00:19.6]} 23. Bg3 {[%clk 0:01:19.9]}
23... h4 {[%clk 0:00:18.1]} 24. Be5 {[%clk 0:01:17.9]} 24... Rc8 {[%clk
0:00:17.2]} 25. Rd4 {[%clk 0:01:17]} 25... f5 {[%clk 0:00:17.1]} 26. c3 {[%clk
0:01:14]} 26... Rc5 {[%clk 0:00:12.5]} 27. Bd6 {[%clk 0:01:10.7]} 27... Bxd6
{[%clk 0:00:12.4]} 28. Rxe6 {[%clk 0:01:11.3]} 28... Nf4 {[%clk 0:00:07.4]} 29.
Rdxd6 {[%clk 0:00:52.8]} 29... Ne2+ {[%clk 0:00:07.3]} 30. Kh1 {[%clk
0:00:50.7]} 30... Bc4 {[%clk 0:00:04.7]} 31. Re7 {[%clk 0:00:49.8]} 31... Kf8
{[%clk 0:00:04.8]} 32. Ra7 {[%clk 0:00:50]} 32... Rc8 {[%clk 0:00:04.7]} 33.
Rf6+ {[%clk 0:00:46.9]} 33... Kg8 {[%clk 0:00:03.6]} 34. Rxf5 {[%clk 0:00:47.8]}
34... h3 {[%clk 0:00:03.8]} 35. Rg5+ {[%clk 0:00:47.7]} 35... Kf8 {[%clk
0:00:03.9]} 36. Rxg4 {[%clk 0:00:47]} 36... Bd5 {[%clk 0:00:04]} 37. f3 {[%clk
0:00:46.8]} 37... Nxc3 {[%clk 0:00:02.1]} 38. bxc3 {[%clk 0:00:44.3]} 38... Rxc3
{[%clk 0:00:03]} 39. Rf4+ {[%clk 0:00:44.9]} 39... Kg8 {[%clk 0:00:03.5]} 40.
gxh3 {[%clk 0:00:44.8]} 40... Bxf3+ {[%clk 0:00:03.7]} 41. Kg1 {[%clk 0:00:45]}
41... Bd5 {[%clk 0:00:04.3]} 42. Rd4 {[%clk 0:00:43.5]} 42... Bf7 {[%clk
0:00:02.5]} 43. Rg4+ {[%clk 0:00:43.6]} 43... Kh8 {[%clk 0:00:01.9]} 44. Rxf7
{[%clk 0:00:39.9]} 44... Rg3+ {[%clk 0:00:01.3]} 45. Kf1 {[%clk 0:00:37.5]}
45... Rg1+ {[%clk 0:00:01.6]} 46. Ke2 {[%clk 0:00:38]} 46... Re1+ {[%clk
0:00:02]} 47. Kd3 {[%clk 0:00:38.3]} 47... Rd1+ {[%clk 0:00:02.2]} 48. Ke4
{[%clk 0:00:38.6]} 48... Rd4+ {[%clk 0:00:02.3]} 49. Kf3 {[%clk 0:00:37.2]}
49... Rd3+ {[%clk 0:00:02.4]} 50. Kf4 {[%clk 0:00:36.4]} 50... Rf3+ {[%clk
0:00:02.3]} 51. Kg5 {[%clk 0:00:35.4]} 51... Rxf7 {[%clk 0:00:01.4]} 52. a4
{[%clk 0:00:36]} 52... Ra7 {[%clk 0:00:01.4]} 53. Rb4 {[%clk 0:00:34.9]} 53...
Kg7 {[%clk 0:00:02.3]} 54. h4 {[%clk 0:00:34.9]} 54... Ra5+ {[%clk 0:00:02.9]}
55. Kg4 {[%clk 0:00:35.5]} 55... Kg6 {[%clk 0:00:03.8]} 56. h5+ {[%clk
0:00:34.8]} 56... Kh7 {[%clk 0:00:04.7]} 57. Rc4 {[%clk 0:00:31.2]} 57... Kh6
{[%clk 0:00:04.7]} 58. h4 {[%clk 0:00:30.9]} 58... Kh7 {[%clk 0:00:03.6]} 59.
Kg3 {[%clk 0:00:30]} 59... Kh6 {[%clk 0:00:03.8]} 60. Rb4 {[%clk 0:00:30.4]}
60... Kh7 {[%clk 0:00:02.3]} 61. Kf3 {[%clk 0:00:30.9]} 61... Kh6 {[%clk
0:00:02.7]} 62. Ke3 {[%clk 0:00:31.2]} 62... Rxh5 {[%clk 0:00:02.2]} 63. Kd3
{[%clk 0:00:29.1]} 1-0